{"text_format":"3","workbook":"xlsx","n_sheets":5,"sheets":["송장","고객","송장 - 기본","송장 세부 정보","송장 기록표 정보"],"not_rendered":{"defined_names":8},"read":"whole","date_system":"1900"}

{"sheet":"송장","index":0,"n_rows":39,"n_cols":7,"rows_kept":39,"merged":[[1,1,1,2],[1,3,1,4],[1,5,1,6],[2,1,2,2],[2,3,2,4],[2,5,2,6],[3,3,3,4],[4,3,4,4],[5,3,5,4],[37,1,37,4],[38,1,38,4]]}
[null,"회사 이름"]
[null,"나머지 주소",null,"전화: 전화 번호",null,"전자 메일"]
[null,"시/도, 우편 번호",null,"팩스: 팩스 번호",null,"웹 사이트"]
[null,"청구 대상:",{"$f":"IFERROR(VLOOKUP(VLOOKUP(rngInvoice,InvoicesMain[],2,FALSE),고객목록[],3,TRUE),\"\")","v":"콘토소(주)"},{"$f":"\"전화 번호: \"&IFERROR(VLOOKUP(VLOOKUP(rngInvoice,InvoicesMain[],2,FALSE),고객목록[],9,FALSE),\"\")","v":"전화 번호: 432-555-0189"},null,"송장 번호:","3-456-2"]
[null,"주소:",{"$f":"IFERROR(IF((VLOOKUP(VLOOKUP(rngInvoice,InvoicesMain[],2,FALSE),고객목록[],5,FALSE))=\"\",\"\",(VLOOKUP(VLOOKUP(rngInvoice,InvoicesMain[],2,FALSE),고객목록[],5,FALSE))),\"\")","v":"부평구 부평동"},{"$f":"\"팩스:        \"&IFERROR(VLOOKUP(VLOOKUP(rngInvoice,InvoicesMain[],2,FALSE),고객목록[],11,FALSE),\"\")","v":"팩스:        432-555-0123"},null,"송장 날짜:",{"$f":"IFERROR(IF(VLOOKUP(rngInvoice,InvoicesMain[],3,FALSE)=\"\",\"\",VLOOKUP(rngInvoice,InvoicesMain[],3,FALSE)),\"\")","v":"2019-08-09"}]
[null,null,{"$f":"IFERROR(VLOOKUP(VLOOKUP(rngInvoice,InvoicesMain[],2,FALSE),고객목록[],6,FALSE)&\", \"& VLOOKUP(VLOOKUP(G4,InvoicesMain[],2,FALSE),고객목록[],7,FALSE)&\" \"&VLOOKUP(VLOOKUP(G4,InvoicesMain[],2,FALSE),고객목록[],8,FALSE),\"\")","v":"인천, 인천 098765"},{"$f":"\"전자 메일: \"&IFERROR(VLOOKUP(VLOOKUP(rngInvoice,InvoicesMain[],2,FALSE),고객목록[],10,FALSE),\"\")","v":"전자 메일: someone@example.com"}]
[null,{"$f":"\"송장 대상: \"&IFERROR(VLOOKUP(rngInvoice,InvoicesMain[],4),\"\")","v":"송장 대상: 프로젝트 2"}]
[null,"항목 번호","설명","수량","단가","할인","가격"]
[null,{"$f":"IFERROR(INDEX(송장세부정보[],SMALL(IF(송장세부정보[송장 번호]=rngInvoice,ROW(송장세부정보[])-ROW(송장세부정보[#Headers])), ROW(1:1)), MATCH($B$8, 송장세부정보[#Headers], 0)),\"\")","v":"Z4567"},{"$f":"IFERROR(INDEX(송장세부정보[],SMALL(IF(송장세부정보[송장 번호]=rngInvoice,ROW(송장세부정보[])-ROW(송장세부정보[#Headers])), ROW(1:1)), MATCH($C$8, 송장세부정보[#Headers], 0)),\"\")","v":"송장 3-456-2 데이터 1"},{"$f":"IFERROR(INDEX(송장세부정보[],SMALL(IF(송장세부정보[송장 번호]=rngInvoice,ROW(송장세부정보[])-ROW(송장세부정보[#Headers])), ROW(1:1)), MATCH($D$8, 송장세부정보[#Headers], 0)),\"\")","v":39},{"$f":"IFERROR(INDEX(송장세부정보[],SMALL(IF(송장세부정보[송장 번호]=rngInvoice,ROW(송장세부정보[])-ROW(송장세부정보[#Headers])), ROW(1:1)), MATCH($E$8, 송장세부정보[#Headers], 0)),\"\")","v":{"v":5,"d":"₩5.00"}},{"$f":"IFERROR(INDEX(송장세부정보[],SMALL(IF(송장세부정보[송장 번호]=rngInvoice,ROW(송장세부정보[])-ROW(송장세부정보[#Headers])), ROW(1:1)), MATCH($F$8, 송장세부정보[#Headers], 0)),\"\")","v":0},{"$f":"IFERROR((D9*E9)-F9,\"\")","v":{"v":195,"d":"₩195.00"}}]
[null,{"$f":"IFERROR(INDEX(송장세부정보[],SMALL(IF(송장세부정보[송장 번호]=rngInvoice,ROW(송장세부정보[])-ROW(송장세부정보[#Headers])), ROW(2:2)), MATCH($B$8, 송장세부정보[#Headers], 0)),\"\")","v":"Z4568"},{"$f":"IFERROR(INDEX(송장세부정보[],SMALL(IF(송장세부정보[송장 번호]=rngInvoice,ROW(송장세부정보[])-ROW(송장세부정보[#Headers])), ROW(2:2)), MATCH($C$8, 송장세부정보[#Headers], 0)),\"\")","v":"송장 3-456-2 데이터 2"},{"$f":"IFERROR(INDEX(송장세부정보[],SMALL(IF(송장세부정보[송장 번호]=rngInvoice,ROW(송장세부정보[])-ROW(송장세부정보[#Headers])), ROW(2:2)), MATCH($D$8, 송장세부정보[#Headers], 0)),\"\")","v":40},{"$f":"IFERROR(INDEX(송장세부정보[],SMALL(IF(송장세부정보[송장 번호]=rngInvoice,ROW(송장세부정보[])-ROW(송장세부정보[#Headers])), ROW(2:2)), MATCH($E$8, 송장세부정보[#Headers], 0)),\"\")","v":{"v":4,"d":"₩4.00"}},{"$f":"IFERROR(INDEX(송장세부정보[],SMALL(IF(송장세부정보[송장 번호]=rngInvoice,ROW(송장세부정보[])-ROW(송장세부정보[#Headers])), ROW(2:2)), MATCH($F$8, 송장세부정보[#Headers], 0)),\"\")","v":{"v":5,"d":"₩5.00"}},{"v":155,"d":"₩155.00"}]
[null,{"$f":"IFERROR(INDEX(송장세부정보[],SMALL(IF(송장세부정보[송장 번호]=rngInvoice,ROW(송장세부정보[])-ROW(송장세부정보[#Headers])), ROW(3:3)), MATCH($B$8, 송장세부정보[#Headers], 0)),\"\")","v":"Z4569"},{"$f":"IFERROR(INDEX(송장세부정보[],SMALL(IF(송장세부정보[송장 번호]=rngInvoice,ROW(송장세부정보[])-ROW(송장세부정보[#Headers])), ROW(3:3)), MATCH($C$8, 송장세부정보[#Headers], 0)),\"\")","v":"송장 3-456-2 데이터 3"},{"$f":"IFERROR(INDEX(송장세부정보[],SMALL(IF(송장세부정보[송장 번호]=rngInvoice,ROW(송장세부정보[])-ROW(송장세부정보[#Headers])), ROW(3:3)), MATCH($D$8, 송장세부정보[#Headers], 0)),\"\")","v":30},{"$f":"IFERROR(INDEX(송장세부정보[],SMALL(IF(송장세부정보[송장 번호]=rngInvoice,ROW(송장세부정보[])-ROW(송장세부정보[#Headers])), ROW(3:3)), MATCH($E$8, 송장세부정보[#Headers], 0)),\"\")","v":{"v":6,"d":"₩6.00"}},{"$f":"IFERROR(INDEX(송장세부정보[],SMALL(IF(송장세부정보[송장 번호]=rngInvoice,ROW(송장세부정보[])-ROW(송장세부정보[#Headers])), ROW(3:3)), MATCH($F$8, 송장세부정보[#Headers], 0)),\"\")","v":{"v":7,"d":"₩7.00"}},{"v":173,"d":"₩173.00"}]
[null,{"$f":"IFERROR(INDEX(송장세부정보[],SMALL(IF(송장세부정보[송장 번호]=rngInvoice,ROW(송장세부정보[])-ROW(송장세부정보[#Headers])), ROW(4:4)), MATCH($B$8, 송장세부정보[#Headers], 0)),\"\")","v":"Z4570"},{"$f":"IFERROR(INDEX(송장세부정보[],SMALL(IF(송장세부정보[송장 번호]=rngInvoice,ROW(송장세부정보[])-ROW(송장세부정보[#Headers])), ROW(4:4)), MATCH($C$8, 송장세부정보[#Headers], 0)),\"\")","v":"송장 3-456-2 데이터 4"},{"$f":"IFERROR(INDEX(송장세부정보[],SMALL(IF(송장세부정보[송장 번호]=rngInvoice,ROW(송장세부정보[])-ROW(송장세부정보[#Headers])), ROW(4:4)), MATCH($D$8, 송장세부정보[#Headers], 0)),\"\")","v":40},{"$f":"IFERROR(INDEX(송장세부정보[],SMALL(IF(송장세부정보[송장 번호]=rngInvoice,ROW(송장세부정보[])-ROW(송장세부정보[#Headers])), ROW(4:4)), MATCH($E$8, 송장세부정보[#Headers], 0)),\"\")","v":{"v":7,"d":"₩7.00"}},{"$f":"IFERROR(INDEX(송장세부정보[],SMALL(IF(송장세부정보[송장 번호]=rngInvoice,ROW(송장세부정보[])-ROW(송장세부정보[#Headers])), ROW(4:4)), MATCH($F$8, 송장세부정보[#Headers], 0)),\"\")","v":0},{"v":280,"d":"₩280.00"}]
[null,{"$f":"IFERROR(INDEX(송장세부정보[],SMALL(IF(송장세부정보[송장 번호]=rngInvoice,ROW(송장세부정보[])-ROW(송장세부정보[#Headers])), ROW(5:5)), MATCH($B$8, 송장세부정보[#Headers], 0)),\"\")","v":"Z4571"},{"$f":"IFERROR(INDEX(송장세부정보[],SMALL(IF(송장세부정보[송장 번호]=rngInvoice,ROW(송장세부정보[])-ROW(송장세부정보[#Headers])), ROW(5:5)), MATCH($C$8, 송장세부정보[#Headers], 0)),\"\")","v":"송장 3-456-2 데이터 5"},{"$f":"IFERROR(INDEX(송장세부정보[],SMALL(IF(송장세부정보[송장 번호]=rngInvoice,ROW(송장세부정보[])-ROW(송장세부정보[#Headers])), ROW(5:5)), MATCH($D$8, 송장세부정보[#Headers], 0)),\"\")","v":10},{"$f":"IFERROR(INDEX(송장세부정보[],SMALL(IF(송장세부정보[송장 번호]=rngInvoice,ROW(송장세부정보[])-ROW(송장세부정보[#Headers])), ROW(5:5)), MATCH($E$8, 송장세부정보[#Headers], 0)),\"\")","v":{"v":4,"d":"₩4.00"}},{"$f":"IFERROR(INDEX(송장세부정보[],SMALL(IF(송장세부정보[송장 번호]=rngInvoice,ROW(송장세부정보[])-ROW(송장세부정보[#Headers])), ROW(5:5)), MATCH($F$8, 송장세부정보[#Headers], 0)),\"\")","v":0},{"v":40,"d":"₩40.00"}]
[null,{"$f":"IFERROR(INDEX(송장세부정보[],SMALL(IF(송장세부정보[송장 번호]=rngInvoice,ROW(송장세부정보[])-ROW(송장세부정보[#Headers])), ROW(6:6)), MATCH($B$8, 송장세부정보[#Headers], 0)),\"\")","v":"Z4572"},{"$f":"IFERROR(INDEX(송장세부정보[],SMALL(IF(송장세부정보[송장 번호]=rngInvoice,ROW(송장세부정보[])-ROW(송장세부정보[#Headers])), ROW(6:6)), MATCH($C$8, 송장세부정보[#Headers], 0)),\"\")","v":"송장 3-456-2 데이터 6"},{"$f":"IFERROR(INDEX(송장세부정보[],SMALL(IF(송장세부정보[송장 번호]=rngInvoice,ROW(송장세부정보[])-ROW(송장세부정보[#Headers])), ROW(6:6)), MATCH($D$8, 송장세부정보[#Headers], 0)),\"\")","v":5},{"$f":"IFERROR(INDEX(송장세부정보[],SMALL(IF(송장세부정보[송장 번호]=rngInvoice,ROW(송장세부정보[])-ROW(송장세부정보[#Headers])), ROW(6:6)), MATCH($E$8, 송장세부정보[#Headers], 0)),\"\")","v":{"v":8,"d":"₩8.00"}},{"$f":"IFERROR(INDEX(송장세부정보[],SMALL(IF(송장세부정보[송장 번호]=rngInvoice,ROW(송장세부정보[])-ROW(송장세부정보[#Headers])), ROW(6:6)), MATCH($F$8, 송장세부정보[#Headers], 0)),\"\")","v":0},{"v":40,"d":"₩40.00"}]
[null,{"$f":"IFERROR(INDEX(송장세부정보[],SMALL(IF(송장세부정보[송장 번호]=rngInvoice,ROW(송장세부정보[])-ROW(송장세부정보[#Headers])), ROW(7:7)), MATCH($B$8, 송장세부정보[#Headers], 0)),\"\")","v":"Z4573"},{"$f":"IFERROR(INDEX(송장세부정보[],SMALL(IF(송장세부정보[송장 번호]=rngInvoice,ROW(송장세부정보[])-ROW(송장세부정보[#Headers])), ROW(7:7)), MATCH($C$8, 송장세부정보[#Headers], 0)),\"\")","v":"송장 3-456-2 데이터 7"},{"$f":"IFERROR(INDEX(송장세부정보[],SMALL(IF(송장세부정보[송장 번호]=rngInvoice,ROW(송장세부정보[])-ROW(송장세부정보[#Headers])), ROW(7:7)), MATCH($D$8, 송장세부정보[#Headers], 0)),\"\")","v":70},{"$f":"IFERROR(INDEX(송장세부정보[],SMALL(IF(송장세부정보[송장 번호]=rngInvoice,ROW(송장세부정보[])-ROW(송장세부정보[#Headers])), ROW(7:7)), MATCH($E$8, 송장세부정보[#Headers], 0)),\"\")","v":{"v":6,"d":"₩6.00"}},{"$f":"IFERROR(INDEX(송장세부정보[],SMALL(IF(송장세부정보[송장 번호]=rngInvoice,ROW(송장세부정보[])-ROW(송장세부정보[#Headers])), ROW(7:7)), MATCH($F$8, 송장세부정보[#Headers], 0)),\"\")","v":0},{"v":420,"d":"₩420.00"}]
[null,{"$f":"IFERROR(INDEX(송장세부정보[],SMALL(IF(송장세부정보[송장 번호]=rngInvoice,ROW(송장세부정보[])-ROW(송장세부정보[#Headers])), ROW(8:8)), MATCH($B$8, 송장세부정보[#Headers], 0)),\"\")","v":"Z4574"},{"$f":"IFERROR(INDEX(송장세부정보[],SMALL(IF(송장세부정보[송장 번호]=rngInvoice,ROW(송장세부정보[])-ROW(송장세부정보[#Headers])), ROW(8:8)), MATCH($C$8, 송장세부정보[#Headers], 0)),\"\")","v":"송장 3-456-2 데이터 8"},{"$f":"IFERROR(INDEX(송장세부정보[],SMALL(IF(송장세부정보[송장 번호]=rngInvoice,ROW(송장세부정보[])-ROW(송장세부정보[#Headers])), ROW(8:8)), MATCH($D$8, 송장세부정보[#Headers], 0)),\"\")","v":25},{"$f":"IFERROR(INDEX(송장세부정보[],SMALL(IF(송장세부정보[송장 번호]=rngInvoice,ROW(송장세부정보[])-ROW(송장세부정보[#Headers])), ROW(8:8)), MATCH($E$8, 송장세부정보[#Headers], 0)),\"\")","v":{"v":4,"d":"₩4.00"}},{"$f":"IFERROR(INDEX(송장세부정보[],SMALL(IF(송장세부정보[송장 번호]=rngInvoice,ROW(송장세부정보[])-ROW(송장세부정보[#Headers])), ROW(8:8)), MATCH($F$8, 송장세부정보[#Headers], 0)),\"\")","v":0},{"v":100,"d":"₩100.00"}]
[null,{"$f":"IFERROR(INDEX(송장세부정보[],SMALL(IF(송장세부정보[송장 번호]=rngInvoice,ROW(송장세부정보[])-ROW(송장세부정보[#Headers])), ROW(9:9)), MATCH($B$8, 송장세부정보[#Headers], 0)),\"\")","v":"Z4575"},{"$f":"IFERROR(INDEX(송장세부정보[],SMALL(IF(송장세부정보[송장 번호]=rngInvoice,ROW(송장세부정보[])-ROW(송장세부정보[#Headers])), ROW(9:9)), MATCH($C$8, 송장세부정보[#Headers], 0)),\"\")","v":"송장 3-456-2 데이터 9"},{"$f":"IFERROR(INDEX(송장세부정보[],SMALL(IF(송장세부정보[송장 번호]=rngInvoice,ROW(송장세부정보[])-ROW(송장세부정보[#Headers])), ROW(9:9)), MATCH($D$8, 송장세부정보[#Headers], 0)),\"\")","v":5},{"$f":"IFERROR(INDEX(송장세부정보[],SMALL(IF(송장세부정보[송장 번호]=rngInvoice,ROW(송장세부정보[])-ROW(송장세부정보[#Headers])), ROW(9:9)), MATCH($E$8, 송장세부정보[#Headers], 0)),\"\")","v":{"v":7,"d":"₩7.00"}},{"$f":"IFERROR(INDEX(송장세부정보[],SMALL(IF(송장세부정보[송장 번호]=rngInvoice,ROW(송장세부정보[])-ROW(송장세부정보[#Headers])), ROW(9:9)), MATCH($F$8, 송장세부정보[#Headers], 0)),\"\")","v":{"v":3,"d":"₩3.00"}},{"v":32,"d":"₩32.00"}]
[null,{"$f":"IFERROR(INDEX(송장세부정보[],SMALL(IF(송장세부정보[송장 번호]=rngInvoice,ROW(송장세부정보[])-ROW(송장세부정보[#Headers])), ROW(10:10)), MATCH($B$8, 송장세부정보[#Headers], 0)),\"\")","v":"Z4576"},{"$f":"IFERROR(INDEX(송장세부정보[],SMALL(IF(송장세부정보[송장 번호]=rngInvoice,ROW(송장세부정보[])-ROW(송장세부정보[#Headers])), ROW(10:10)), MATCH($C$8, 송장세부정보[#Headers], 0)),\"\")","v":"송장 3-456-2 데이터 10"},{"$f":"IFERROR(INDEX(송장세부정보[],SMALL(IF(송장세부정보[송장 번호]=rngInvoice,ROW(송장세부정보[])-ROW(송장세부정보[#Headers])), ROW(10:10)), MATCH($D$8, 송장세부정보[#Headers], 0)),\"\")","v":80},{"$f":"IFERROR(INDEX(송장세부정보[],SMALL(IF(송장세부정보[송장 번호]=rngInvoice,ROW(송장세부정보[])-ROW(송장세부정보[#Headers])), ROW(10:10)), MATCH($E$8, 송장세부정보[#Headers], 0)),\"\")","v":{"v":1,"d":"₩1.00"}},{"$f":"IFERROR(INDEX(송장세부정보[],SMALL(IF(송장세부정보[송장 번호]=rngInvoice,ROW(송장세부정보[])-ROW(송장세부정보[#Headers])), ROW(10:10)), MATCH($F$8, 송장세부정보[#Headers], 0)),\"\")","v":0},{"v":80,"d":"₩80.00"}]
[null,{"$f":"IFERROR(INDEX(송장세부정보[],SMALL(IF(송장세부정보[송장 번호]=rngInvoice,ROW(송장세부정보[])-ROW(송장세부정보[#Headers])), ROW(11:11)), MATCH($B$8, 송장세부정보[#Headers], 0)),\"\")","v":"Z4577"},{"$f":"IFERROR(INDEX(송장세부정보[],SMALL(IF(송장세부정보[송장 번호]=rngInvoice,ROW(송장세부정보[])-ROW(송장세부정보[#Headers])), ROW(11:11)), MATCH($C$8, 송장세부정보[#Headers], 0)),\"\")","v":"송장 3-456-2 데이터 11"},{"$f":"IFERROR(INDEX(송장세부정보[],SMALL(IF(송장세부정보[송장 번호]=rngInvoice,ROW(송장세부정보[])-ROW(송장세부정보[#Headers])), ROW(11:11)), MATCH($D$8, 송장세부정보[#Headers], 0)),\"\")","v":65},{"$f":"IFERROR(INDEX(송장세부정보[],SMALL(IF(송장세부정보[송장 번호]=rngInvoice,ROW(송장세부정보[])-ROW(송장세부정보[#Headers])), ROW(11:11)), MATCH($E$8, 송장세부정보[#Headers], 0)),\"\")","v":{"v":7,"d":"₩7.00"}},{"$f":"IFERROR(INDEX(송장세부정보[],SMALL(IF(송장세부정보[송장 번호]=rngInvoice,ROW(송장세부정보[])-ROW(송장세부정보[#Headers])), ROW(11:11)), MATCH($F$8, 송장세부정보[#Headers], 0)),\"\")","v":0},{"v":455,"d":"₩455.00"}]
[null,{"$f":"IFERROR(INDEX(송장세부정보[],SMALL(IF(송장세부정보[송장 번호]=rngInvoice,ROW(송장세부정보[])-ROW(송장세부정보[#Headers])), ROW(12:12)), MATCH($B$8, 송장세부정보[#Headers], 0)),\"\")","v":"Z4578"},{"$f":"IFERROR(INDEX(송장세부정보[],SMALL(IF(송장세부정보[송장 번호]=rngInvoice,ROW(송장세부정보[])-ROW(송장세부정보[#Headers])), ROW(12:12)), MATCH($C$8, 송장세부정보[#Headers], 0)),\"\")","v":"송장 3-456-2 데이터 12"},{"$f":"IFERROR(INDEX(송장세부정보[],SMALL(IF(송장세부정보[송장 번호]=rngInvoice,ROW(송장세부정보[])-ROW(송장세부정보[#Headers])), ROW(12:12)), MATCH($D$8, 송장세부정보[#Headers], 0)),\"\")","v":44},{"$f":"IFERROR(INDEX(송장세부정보[],SMALL(IF(송장세부정보[송장 번호]=rngInvoice,ROW(송장세부정보[])-ROW(송장세부정보[#Headers])), ROW(12:12)), MATCH($E$8, 송장세부정보[#Headers], 0)),\"\")","v":{"v":1,"d":"₩1.00"}},{"$f":"IFERROR(INDEX(송장세부정보[],SMALL(IF(송장세부정보[송장 번호]=rngInvoice,ROW(송장세부정보[])-ROW(송장세부정보[#Headers])), ROW(12:12)), MATCH($F$8, 송장세부정보[#Headers], 0)),\"\")","v":0},{"v":44,"d":"₩44.00"}]
[null,{"$f":"IFERROR(INDEX(송장세부정보[],SMALL(IF(송장세부정보[송장 번호]=rngInvoice,ROW(송장세부정보[])-ROW(송장세부정보[#Headers])), ROW(13:13)), MATCH($B$8, 송장세부정보[#Headers], 0)),\"\")","v":""},{"$f":"IFERROR(INDEX(송장세부정보[],SMALL(IF(송장세부정보[송장 번호]=rngInvoice,ROW(송장세부정보[])-ROW(송장세부정보[#Headers])), ROW(13:13)), MATCH($C$8, 송장세부정보[#Headers], 0)),\"\")","v":""},{"$f":"IFERROR(INDEX(송장세부정보[],SMALL(IF(송장세부정보[송장 번호]=rngInvoice,ROW(송장세부정보[])-ROW(송장세부정보[#Headers])), ROW(13:13)), MATCH($D$8, 송장세부정보[#Headers], 0)),\"\")","v":""},{"$f":"IFERROR(INDEX(송장세부정보[],SMALL(IF(송장세부정보[송장 번호]=rngInvoice,ROW(송장세부정보[])-ROW(송장세부정보[#Headers])), ROW(13:13)), MATCH($E$8, 송장세부정보[#Headers], 0)),\"\")","v":""},{"$f":"IFERROR(INDEX(송장세부정보[],SMALL(IF(송장세부정보[송장 번호]=rngInvoice,ROW(송장세부정보[])-ROW(송장세부정보[#Headers])), ROW(13:13)), MATCH($F$8, 송장세부정보[#Headers], 0)),\"\")","v":""},""]
[null,{"$f":"IFERROR(INDEX(송장세부정보[],SMALL(IF(송장세부정보[송장 번호]=rngInvoice,ROW(송장세부정보[])-ROW(송장세부정보[#Headers])), ROW(14:14)), MATCH($B$8, 송장세부정보[#Headers], 0)),\"\")","v":""},{"$f":"IFERROR(INDEX(송장세부정보[],SMALL(IF(송장세부정보[송장 번호]=rngInvoice,ROW(송장세부정보[])-ROW(송장세부정보[#Headers])), ROW(14:14)), MATCH($C$8, 송장세부정보[#Headers], 0)),\"\")","v":""},{"$f":"IFERROR(INDEX(송장세부정보[],SMALL(IF(송장세부정보[송장 번호]=rngInvoice,ROW(송장세부정보[])-ROW(송장세부정보[#Headers])), ROW(14:14)), MATCH($D$8, 송장세부정보[#Headers], 0)),\"\")","v":""},{"$f":"IFERROR(INDEX(송장세부정보[],SMALL(IF(송장세부정보[송장 번호]=rngInvoice,ROW(송장세부정보[])-ROW(송장세부정보[#Headers])), ROW(14:14)), MATCH($E$8, 송장세부정보[#Headers], 0)),\"\")","v":""},{"$f":"IFERROR(INDEX(송장세부정보[],SMALL(IF(송장세부정보[송장 번호]=rngInvoice,ROW(송장세부정보[])-ROW(송장세부정보[#Headers])), ROW(14:14)), MATCH($F$8, 송장세부정보[#Headers], 0)),\"\")","v":""},""]
[null,{"$f":"IFERROR(INDEX(송장세부정보[],SMALL(IF(송장세부정보[송장 번호]=rngInvoice,ROW(송장세부정보[])-ROW(송장세부정보[#Headers])), ROW(15:15)), MATCH($B$8, 송장세부정보[#Headers], 0)),\"\")","v":""},{"$f":"IFERROR(INDEX(송장세부정보[],SMALL(IF(송장세부정보[송장 번호]=rngInvoice,ROW(송장세부정보[])-ROW(송장세부정보[#Headers])), ROW(15:15)), MATCH($C$8, 송장세부정보[#Headers], 0)),\"\")","v":""},{"$f":"IFERROR(INDEX(송장세부정보[],SMALL(IF(송장세부정보[송장 번호]=rngInvoice,ROW(송장세부정보[])-ROW(송장세부정보[#Headers])), ROW(15:15)), MATCH($D$8, 송장세부정보[#Headers], 0)),\"\")","v":""},{"$f":"IFERROR(INDEX(송장세부정보[],SMALL(IF(송장세부정보[송장 번호]=rngInvoice,ROW(송장세부정보[])-ROW(송장세부정보[#Headers])), ROW(15:15)), MATCH($E$8, 송장세부정보[#Headers], 0)),\"\")","v":""},{"$f":"IFERROR(INDEX(송장세부정보[],SMALL(IF(송장세부정보[송장 번호]=rngInvoice,ROW(송장세부정보[])-ROW(송장세부정보[#Headers])), ROW(15:15)), MATCH($F$8, 송장세부정보[#Headers], 0)),\"\")","v":""},""]
[null,{"$f":"IFERROR(INDEX(송장세부정보[],SMALL(IF(송장세부정보[송장 번호]=rngInvoice,ROW(송장세부정보[])-ROW(송장세부정보[#Headers])), ROW(16:16)), MATCH($B$8, 송장세부정보[#Headers], 0)),\"\")","v":""},{"$f":"IFERROR(INDEX(송장세부정보[],SMALL(IF(송장세부정보[송장 번호]=rngInvoice,ROW(송장세부정보[])-ROW(송장세부정보[#Headers])), ROW(16:16)), MATCH($C$8, 송장세부정보[#Headers], 0)),\"\")","v":""},{"$f":"IFERROR(INDEX(송장세부정보[],SMALL(IF(송장세부정보[송장 번호]=rngInvoice,ROW(송장세부정보[])-ROW(송장세부정보[#Headers])), ROW(16:16)), MATCH($D$8, 송장세부정보[#Headers], 0)),\"\")","v":""},{"$f":"IFERROR(INDEX(송장세부정보[],SMALL(IF(송장세부정보[송장 번호]=rngInvoice,ROW(송장세부정보[])-ROW(송장세부정보[#Headers])), ROW(16:16)), MATCH($E$8, 송장세부정보[#Headers], 0)),\"\")","v":""},{"$f":"IFERROR(INDEX(송장세부정보[],SMALL(IF(송장세부정보[송장 번호]=rngInvoice,ROW(송장세부정보[])-ROW(송장세부정보[#Headers])), ROW(16:16)), MATCH($F$8, 송장세부정보[#Headers], 0)),\"\")","v":""},""]
[null,{"$f":"IFERROR(INDEX(송장세부정보[],SMALL(IF(송장세부정보[송장 번호]=rngInvoice,ROW(송장세부정보[])-ROW(송장세부정보[#Headers])), ROW(17:17)), MATCH($B$8, 송장세부정보[#Headers], 0)),\"\")","v":""},{"$f":"IFERROR(INDEX(송장세부정보[],SMALL(IF(송장세부정보[송장 번호]=rngInvoice,ROW(송장세부정보[])-ROW(송장세부정보[#Headers])), ROW(17:17)), MATCH($C$8, 송장세부정보[#Headers], 0)),\"\")","v":""},{"$f":"IFERROR(INDEX(송장세부정보[],SMALL(IF(송장세부정보[송장 번호]=rngInvoice,ROW(송장세부정보[])-ROW(송장세부정보[#Headers])), ROW(17:17)), MATCH($D$8, 송장세부정보[#Headers], 0)),\"\")","v":""},{"$f":"IFERROR(INDEX(송장세부정보[],SMALL(IF(송장세부정보[송장 번호]=rngInvoice,ROW(송장세부정보[])-ROW(송장세부정보[#Headers])), ROW(17:17)), MATCH($E$8, 송장세부정보[#Headers], 0)),\"\")","v":""},{"$f":"IFERROR(INDEX(송장세부정보[],SMALL(IF(송장세부정보[송장 번호]=rngInvoice,ROW(송장세부정보[])-ROW(송장세부정보[#Headers])), ROW(17:17)), MATCH($F$8, 송장세부정보[#Headers], 0)),\"\")","v":""},""]
[null,{"$f":"IFERROR(INDEX(송장세부정보[],SMALL(IF(송장세부정보[송장 번호]=rngInvoice,ROW(송장세부정보[])-ROW(송장세부정보[#Headers])), ROW(18:18)), MATCH($B$8, 송장세부정보[#Headers], 0)),\"\")","v":""},{"$f":"IFERROR(INDEX(송장세부정보[],SMALL(IF(송장세부정보[송장 번호]=rngInvoice,ROW(송장세부정보[])-ROW(송장세부정보[#Headers])), ROW(18:18)), MATCH($C$8, 송장세부정보[#Headers], 0)),\"\")","v":""},{"$f":"IFERROR(INDEX(송장세부정보[],SMALL(IF(송장세부정보[송장 번호]=rngInvoice,ROW(송장세부정보[])-ROW(송장세부정보[#Headers])), ROW(18:18)), MATCH($D$8, 송장세부정보[#Headers], 0)),\"\")","v":""},{"$f":"IFERROR(INDEX(송장세부정보[],SMALL(IF(송장세부정보[송장 번호]=rngInvoice,ROW(송장세부정보[])-ROW(송장세부정보[#Headers])), ROW(18:18)), MATCH($E$8, 송장세부정보[#Headers], 0)),\"\")","v":""},{"$f":"IFERROR(INDEX(송장세부정보[],SMALL(IF(송장세부정보[송장 번호]=rngInvoice,ROW(송장세부정보[])-ROW(송장세부정보[#Headers])), ROW(18:18)), MATCH($F$8, 송장세부정보[#Headers], 0)),\"\")","v":""},""]
[null,{"$f":"IFERROR(INDEX(송장세부정보[],SMALL(IF(송장세부정보[송장 번호]=rngInvoice,ROW(송장세부정보[])-ROW(송장세부정보[#Headers])), ROW(19:19)), MATCH($B$8, 송장세부정보[#Headers], 0)),\"\")","v":""},{"$f":"IFERROR(INDEX(송장세부정보[],SMALL(IF(송장세부정보[송장 번호]=rngInvoice,ROW(송장세부정보[])-ROW(송장세부정보[#Headers])), ROW(19:19)), MATCH($C$8, 송장세부정보[#Headers], 0)),\"\")","v":""},{"$f":"IFERROR(INDEX(송장세부정보[],SMALL(IF(송장세부정보[송장 번호]=rngInvoice,ROW(송장세부정보[])-ROW(송장세부정보[#Headers])), ROW(19:19)), MATCH($D$8, 송장세부정보[#Headers], 0)),\"\")","v":""},{"$f":"IFERROR(INDEX(송장세부정보[],SMALL(IF(송장세부정보[송장 번호]=rngInvoice,ROW(송장세부정보[])-ROW(송장세부정보[#Headers])), ROW(19:19)), MATCH($E$8, 송장세부정보[#Headers], 0)),\"\")","v":""},{"$f":"IFERROR(INDEX(송장세부정보[],SMALL(IF(송장세부정보[송장 번호]=rngInvoice,ROW(송장세부정보[])-ROW(송장세부정보[#Headers])), ROW(19:19)), MATCH($F$8, 송장세부정보[#Headers], 0)),\"\")","v":""},""]
[null,{"$f":"IFERROR(INDEX(송장세부정보[],SMALL(IF(송장세부정보[송장 번호]=rngInvoice,ROW(송장세부정보[])-ROW(송장세부정보[#Headers])), ROW(20:20)), MATCH($B$8, 송장세부정보[#Headers], 0)),\"\")","v":""},{"$f":"IFERROR(INDEX(송장세부정보[],SMALL(IF(송장세부정보[송장 번호]=rngInvoice,ROW(송장세부정보[])-ROW(송장세부정보[#Headers])), ROW(20:20)), MATCH($C$8, 송장세부정보[#Headers], 0)),\"\")","v":""},{"$f":"IFERROR(INDEX(송장세부정보[],SMALL(IF(송장세부정보[송장 번호]=rngInvoice,ROW(송장세부정보[])-ROW(송장세부정보[#Headers])), ROW(20:20)), MATCH($D$8, 송장세부정보[#Headers], 0)),\"\")","v":""},{"$f":"IFERROR(INDEX(송장세부정보[],SMALL(IF(송장세부정보[송장 번호]=rngInvoice,ROW(송장세부정보[])-ROW(송장세부정보[#Headers])), ROW(20:20)), MATCH($E$8, 송장세부정보[#Headers], 0)),\"\")","v":""},{"$f":"IFERROR(INDEX(송장세부정보[],SMALL(IF(송장세부정보[송장 번호]=rngInvoice,ROW(송장세부정보[])-ROW(송장세부정보[#Headers])), ROW(20:20)), MATCH($F$8, 송장세부정보[#Headers], 0)),\"\")","v":""},""]
[null,{"$f":"IFERROR(INDEX(송장세부정보[],SMALL(IF(송장세부정보[송장 번호]=rngInvoice,ROW(송장세부정보[])-ROW(송장세부정보[#Headers])), ROW(21:21)), MATCH($B$8, 송장세부정보[#Headers], 0)),\"\")","v":""},{"$f":"IFERROR(INDEX(송장세부정보[],SMALL(IF(송장세부정보[송장 번호]=rngInvoice,ROW(송장세부정보[])-ROW(송장세부정보[#Headers])), ROW(21:21)), MATCH($C$8, 송장세부정보[#Headers], 0)),\"\")","v":""},{"$f":"IFERROR(INDEX(송장세부정보[],SMALL(IF(송장세부정보[송장 번호]=rngInvoice,ROW(송장세부정보[])-ROW(송장세부정보[#Headers])), ROW(21:21)), MATCH($D$8, 송장세부정보[#Headers], 0)),\"\")","v":""},{"$f":"IFERROR(INDEX(송장세부정보[],SMALL(IF(송장세부정보[송장 번호]=rngInvoice,ROW(송장세부정보[])-ROW(송장세부정보[#Headers])), ROW(21:21)), MATCH($E$8, 송장세부정보[#Headers], 0)),\"\")","v":""},{"$f":"IFERROR(INDEX(송장세부정보[],SMALL(IF(송장세부정보[송장 번호]=rngInvoice,ROW(송장세부정보[])-ROW(송장세부정보[#Headers])), ROW(21:21)), MATCH($F$8, 송장세부정보[#Headers], 0)),\"\")","v":""},""]
[null,{"$f":"IFERROR(INDEX(송장세부정보[],SMALL(IF(송장세부정보[송장 번호]=rngInvoice,ROW(송장세부정보[])-ROW(송장세부정보[#Headers])), ROW(22:22)), MATCH($B$8, 송장세부정보[#Headers], 0)),\"\")","v":""},{"$f":"IFERROR(INDEX(송장세부정보[],SMALL(IF(송장세부정보[송장 번호]=rngInvoice,ROW(송장세부정보[])-ROW(송장세부정보[#Headers])), ROW(22:22)), MATCH($C$8, 송장세부정보[#Headers], 0)),\"\")","v":""},{"$f":"IFERROR(INDEX(송장세부정보[],SMALL(IF(송장세부정보[송장 번호]=rngInvoice,ROW(송장세부정보[])-ROW(송장세부정보[#Headers])), ROW(22:22)), MATCH($D$8, 송장세부정보[#Headers], 0)),\"\")","v":""},{"$f":"IFERROR(INDEX(송장세부정보[],SMALL(IF(송장세부정보[송장 번호]=rngInvoice,ROW(송장세부정보[])-ROW(송장세부정보[#Headers])), ROW(22:22)), MATCH($E$8, 송장세부정보[#Headers], 0)),\"\")","v":""},{"$f":"IFERROR(INDEX(송장세부정보[],SMALL(IF(송장세부정보[송장 번호]=rngInvoice,ROW(송장세부정보[])-ROW(송장세부정보[#Headers])), ROW(22:22)), MATCH($F$8, 송장세부정보[#Headers], 0)),\"\")","v":""},""]
[null,{"$f":"IFERROR(INDEX(송장세부정보[],SMALL(IF(송장세부정보[송장 번호]=rngInvoice,ROW(송장세부정보[])-ROW(송장세부정보[#Headers])), ROW(23:23)), MATCH($B$8, 송장세부정보[#Headers], 0)),\"\")","v":""},{"$f":"IFERROR(INDEX(송장세부정보[],SMALL(IF(송장세부정보[송장 번호]=rngInvoice,ROW(송장세부정보[])-ROW(송장세부정보[#Headers])), ROW(23:23)), MATCH($C$8, 송장세부정보[#Headers], 0)),\"\")","v":""},{"$f":"IFERROR(INDEX(송장세부정보[],SMALL(IF(송장세부정보[송장 번호]=rngInvoice,ROW(송장세부정보[])-ROW(송장세부정보[#Headers])), ROW(23:23)), MATCH($D$8, 송장세부정보[#Headers], 0)),\"\")","v":""},{"$f":"IFERROR(INDEX(송장세부정보[],SMALL(IF(송장세부정보[송장 번호]=rngInvoice,ROW(송장세부정보[])-ROW(송장세부정보[#Headers])), ROW(23:23)), MATCH($E$8, 송장세부정보[#Headers], 0)),\"\")","v":""},{"$f":"IFERROR(INDEX(송장세부정보[],SMALL(IF(송장세부정보[송장 번호]=rngInvoice,ROW(송장세부정보[])-ROW(송장세부정보[#Headers])), ROW(23:23)), MATCH($F$8, 송장세부정보[#Headers], 0)),\"\")","v":""},""]
[null,{"$f":"IFERROR(INDEX(송장세부정보[],SMALL(IF(송장세부정보[송장 번호]=rngInvoice,ROW(송장세부정보[])-ROW(송장세부정보[#Headers])), ROW(24:24)), MATCH($B$8, 송장세부정보[#Headers], 0)),\"\")","v":""},{"$f":"IFERROR(INDEX(송장세부정보[],SMALL(IF(송장세부정보[송장 번호]=rngInvoice,ROW(송장세부정보[])-ROW(송장세부정보[#Headers])), ROW(24:24)), MATCH($C$8, 송장세부정보[#Headers], 0)),\"\")","v":""},{"$f":"IFERROR(INDEX(송장세부정보[],SMALL(IF(송장세부정보[송장 번호]=rngInvoice,ROW(송장세부정보[])-ROW(송장세부정보[#Headers])), ROW(24:24)), MATCH($D$8, 송장세부정보[#Headers], 0)),\"\")","v":""},{"$f":"IFERROR(INDEX(송장세부정보[],SMALL(IF(송장세부정보[송장 번호]=rngInvoice,ROW(송장세부정보[])-ROW(송장세부정보[#Headers])), ROW(24:24)), MATCH($E$8, 송장세부정보[#Headers], 0)),\"\")","v":""},{"$f":"IFERROR(INDEX(송장세부정보[],SMALL(IF(송장세부정보[송장 번호]=rngInvoice,ROW(송장세부정보[])-ROW(송장세부정보[#Headers])), ROW(24:24)), MATCH($F$8, 송장세부정보[#Headers], 0)),\"\")","v":""},""]
[null,{"$f":"IFERROR(INDEX(송장세부정보[],SMALL(IF(송장세부정보[송장 번호]=rngInvoice,ROW(송장세부정보[])-ROW(송장세부정보[#Headers])), ROW(25:25)), MATCH($B$8, 송장세부정보[#Headers], 0)),\"\")","v":""},{"$f":"IFERROR(INDEX(송장세부정보[],SMALL(IF(송장세부정보[송장 번호]=rngInvoice,ROW(송장세부정보[])-ROW(송장세부정보[#Headers])), ROW(25:25)), MATCH($C$8, 송장세부정보[#Headers], 0)),\"\")","v":""},{"$f":"IFERROR(INDEX(송장세부정보[],SMALL(IF(송장세부정보[송장 번호]=rngInvoice,ROW(송장세부정보[])-ROW(송장세부정보[#Headers])), ROW(25:25)), MATCH($D$8, 송장세부정보[#Headers], 0)),\"\")","v":""},{"$f":"IFERROR(INDEX(송장세부정보[],SMALL(IF(송장세부정보[송장 번호]=rngInvoice,ROW(송장세부정보[])-ROW(송장세부정보[#Headers])), ROW(25:25)), MATCH($E$8, 송장세부정보[#Headers], 0)),\"\")","v":""},{"$f":"IFERROR(INDEX(송장세부정보[],SMALL(IF(송장세부정보[송장 번호]=rngInvoice,ROW(송장세부정보[])-ROW(송장세부정보[#Headers])), ROW(25:25)), MATCH($F$8, 송장세부정보[#Headers], 0)),\"\")","v":""},""]
[{"$nulls":5},"송장 소계",{"$f":"SUM(ProjectInvoice[가격])","v":{"v":2014,"d":"₩2,014.00"}}]
[{"$nulls":5},"세율",{"$f":"VLOOKUP(rngInvoice,InvoicesMain[],5)","v":{"v":0.0875,"d":"8.75%"}}]
[{"$nulls":5},"판매세",{"$f":"G34*G35","v":{"v":176.225,"d":"₩176.23"}}]
[{"$nulls":5},"기타",{"$f":"VLOOKUP(rngInvoice,InvoicesMain[],6)","v":0}]
[null,{"$f":"\"모든 수표를 \"&회사이름&\" 앞으로 발행합니다.\"","v":"모든 수표를 회사 이름 앞으로 발행합니다."},{"$nulls":3},"받은 금액",{"$f":"VLOOKUP(rngInvoice,InvoicesMain[],7)","v":0}]
[null,"마감일까지 <#>일 남았습니다. 기한 초과 시 매달 <#>%의 연체율이 적용됩니다.",{"$nulls":3},"합계",{"$f":"(G34+G36+G37)-G38","v":{"v":2190.225,"d":"₩2,190.23"}}]

{"sheet":"고객","index":1,"n_rows":6,"n_cols":12,"rows_kept":6}
[]
[null,null,"고객"]
[null,"조회","회사 번호","회사 이름","담당자 이름","주소","도시","시/도","우편 번호","전화 번호","전자 메일","팩스"]
[null,{"$f":"C4& \" - \"&D4","v":"1 - 테일스핀 토이즈 "},1,"테일스핀 토이즈 ","강진영","강남구 삼성동","서울","서울","123456","432-555-0178","someone@example.com","432-555-0187"]
[null,"2 - 콘토소(주)",2,"콘토소(주)","진현준","부평구 부평동","인천","인천","098765","432-555-0189","someone@example.com","432-555-0123"]
[null,"합계",{"$f":"\"총 고객수: \"&SUBTOTAL(103,고객목록[회사 번호])","v":"총 고객수: 2"}]

{"sheet":"송장 - 기본","index":2,"n_rows":6,"n_cols":11,"rows_kept":6}
[]
[null,"송장"]
[null,"송장 번호","회사","송장 날짜","프로젝트 설명","세율","기타","예수금","세부 정보 합계","송장 합계","메모"]
[null,"3-456-1","1 - 테일스핀 토이즈 ",{"$f":"TODAY()","v":"2019-07-30"},"프로젝트 1",{"v":0.0875,"d":"8.75%"},{"v":100,"d":"₩100.00"},{"v":100,"d":"₩100.00"},{"$f":"SUMIF(송장세부정보[송장 번호],\"=\"&InvoicesMain[[#This Row],[송장 번호]],송장세부정보[요약])","v":{"v":5200,"d":"₩5,200.00"}},{"$f":"(InvoicesMain[[#This Row],[세부 정보 합계]]*(1+InvoicesMain[[#This Row],[세율]]))+InvoicesMain[[#This Row],[기타]]-InvoicesMain[[#This Row],[예수금]]","v":{"v":5654.999999999999,"d":"₩5,655.00"}}]
[null,"3-456-2","2 - 콘토소(주)",{"$f":"TODAY()+10","v":"2019-08-09"},"프로젝트 2",{"v":0.0875,"d":"8.75%"},null,null,{"$f":"SUMIF(송장세부정보[송장 번호],\"=\"&InvoicesMain[[#This Row],[송장 번호]],송장세부정보[요약])","v":{"v":2014,"d":"₩2,014.00"}},{"$f":"(InvoicesMain[[#This Row],[세부 정보 합계]]*(1+InvoicesMain[[#This Row],[세율]]))+InvoicesMain[[#This Row],[기타]]-InvoicesMain[[#This Row],[예수금]]","v":{"v":2190.225,"d":"₩2,190.23"}}]
[null,"합계",{"$f":"\"총 송장 수: \"&SUBTOTAL(103,InvoicesMain[송장 번호])","v":"총 송장 수: 2"},{"$nulls":3},{"$f":"SUBTOTAL(109,InvoicesMain[기타])","v":{"v":100,"d":"₩100.00"}},{"$f":"SUBTOTAL(109,InvoicesMain[예수금])","v":{"v":100,"d":"₩100.00"}},{"$f":"SUBTOTAL(109,InvoicesMain[세부 정보 합계])","v":{"v":7214,"d":"₩7,214.00"}},{"$f":"SUBTOTAL(109,InvoicesMain[송장 합계])","v":{"v":7845.2249999999985,"d":"₩7,845.23"}}]

{"sheet":"송장 세부 정보","index":3,"n_rows":40,"n_cols":8,"rows_kept":40}
[]
[null,"송장 세부 정보"]
[null,"설명","송장 번호","항목 번호","수량","단가","할인","요약"]
[null,"송장 3-456-1 데이터 1","3-456-1",1,1,{"v":1,"d":"₩1.00"},{"v":1,"d":"₩1.00"},{"$f":"(송장세부정보[[#This Row],[수량]]*송장세부정보[[#This Row],[단가]])-송장세부정보[[#This Row],[할인]]","v":{"v":0,"d":"₩0.00"}}]
[null,"송장 3-456-1 데이터 2","3-456-1",2,2,{"v":2,"d":"₩2.00"},{"v":2,"d":"₩2.00"},{"$f":"(송장세부정보[[#This Row],[수량]]*송장세부정보[[#This Row],[단가]])-송장세부정보[[#This Row],[할인]]","v":{"v":2,"d":"₩2.00"}}]
[null,"송장 3-456-1 데이터 3","3-456-1",3,3,{"v":3,"d":"₩3.00"},{"v":3,"d":"₩3.00"},{"$f":"(송장세부정보[[#This Row],[수량]]*송장세부정보[[#This Row],[단가]])-송장세부정보[[#This Row],[할인]]","v":{"v":6,"d":"₩6.00"}}]
[null,"송장 3-456-1 데이터 4","3-456-1",4,4,{"v":4,"d":"₩4.00"},{"v":4,"d":"₩4.00"},{"$f":"(송장세부정보[[#This Row],[수량]]*송장세부정보[[#This Row],[단가]])-송장세부정보[[#This Row],[할인]]","v":{"v":12,"d":"₩12.00"}}]
[null,"송장 3-456-1 데이터 5","3-456-1",5,5,{"v":5,"d":"₩5.00"},{"v":5,"d":"₩5.00"},{"$f":"(송장세부정보[[#This Row],[수량]]*송장세부정보[[#This Row],[단가]])-송장세부정보[[#This Row],[할인]]","v":{"v":20,"d":"₩20.00"}}]
[null,"송장 3-456-1 데이터 6","3-456-1",6,6,{"v":6,"d":"₩6.00"},{"v":6,"d":"₩6.00"},{"$f":"(송장세부정보[[#This Row],[수량]]*송장세부정보[[#This Row],[단가]])-송장세부정보[[#This Row],[할인]]","v":{"v":30,"d":"₩30.00"}}]
[null,"송장 3-456-1 데이터 7","3-456-1",7,7,{"v":7,"d":"₩7.00"},{"v":7,"d":"₩7.00"},{"$f":"(송장세부정보[[#This Row],[수량]]*송장세부정보[[#This Row],[단가]])-송장세부정보[[#This Row],[할인]]","v":{"v":42,"d":"₩42.00"}}]
[null,"송장 3-456-1 데이터 8","3-456-1",8,8,{"v":8,"d":"₩8.00"},{"v":8,"d":"₩8.00"},{"$f":"(송장세부정보[[#This Row],[수량]]*송장세부정보[[#This Row],[단가]])-송장세부정보[[#This Row],[할인]]","v":{"v":56,"d":"₩56.00"}}]
[null,"송장 3-456-1 데이터 9","3-456-1",9,9,{"v":9,"d":"₩9.00"},{"v":9,"d":"₩9.00"},{"$f":"(송장세부정보[[#This Row],[수량]]*송장세부정보[[#This Row],[단가]])-송장세부정보[[#This Row],[할인]]","v":{"v":72,"d":"₩72.00"}}]
[null,"송장 3-456-1 데이터 10","3-456-1",10,10,{"v":10,"d":"₩10.00"},{"v":10,"d":"₩10.00"},{"$f":"(송장세부정보[[#This Row],[수량]]*송장세부정보[[#This Row],[단가]])-송장세부정보[[#This Row],[할인]]","v":{"v":90,"d":"₩90.00"}}]
[null,"송장 3-456-1 데이터 11","3-456-1",11,11,{"v":11,"d":"₩11.00"},{"v":11,"d":"₩11.00"},{"$f":"(송장세부정보[[#This Row],[수량]]*송장세부정보[[#This Row],[단가]])-송장세부정보[[#This Row],[할인]]","v":{"v":110,"d":"₩110.00"}}]
[null,"송장 3-456-1 데이터 12","3-456-1",12,12,{"v":12,"d":"₩12.00"},{"v":12,"d":"₩12.00"},{"$f":"(송장세부정보[[#This Row],[수량]]*송장세부정보[[#This Row],[단가]])-송장세부정보[[#This Row],[할인]]","v":{"v":132,"d":"₩132.00"}}]
[null,"송장 3-456-1 데이터 13","3-456-1",13,13,{"v":13,"d":"₩13.00"},{"v":13,"d":"₩13.00"},{"$f":"(송장세부정보[[#This Row],[수량]]*송장세부정보[[#This Row],[단가]])-송장세부정보[[#This Row],[할인]]","v":{"v":156,"d":"₩156.00"}}]
[null,"송장 3-456-1 데이터 14","3-456-1",14,14,{"v":14,"d":"₩14.00"},{"v":14,"d":"₩14.00"},{"$f":"(송장세부정보[[#This Row],[수량]]*송장세부정보[[#This Row],[단가]])-송장세부정보[[#This Row],[할인]]","v":{"v":182,"d":"₩182.00"}}]
[null,"송장 3-456-1 데이터 15","3-456-1",15,15,{"v":15,"d":"₩15.00"},{"v":15,"d":"₩15.00"},{"$f":"(송장세부정보[[#This Row],[수량]]*송장세부정보[[#This Row],[단가]])-송장세부정보[[#This Row],[할인]]","v":{"v":210,"d":"₩210.00"}}]
[null,"송장 3-456-1 데이터 16","3-456-1",16,16,{"v":16,"d":"₩16.00"},{"v":16,"d":"₩16.00"},{"$f":"(송장세부정보[[#This Row],[수량]]*송장세부정보[[#This Row],[단가]])-송장세부정보[[#This Row],[할인]]","v":{"v":240,"d":"₩240.00"}}]
[null,"송장 3-456-1 데이터 17","3-456-1",17,17,{"v":17,"d":"₩17.00"},{"v":17,"d":"₩17.00"},{"$f":"(송장세부정보[[#This Row],[수량]]*송장세부정보[[#This Row],[단가]])-송장세부정보[[#This Row],[할인]]","v":{"v":272,"d":"₩272.00"}}]
[null,"송장 3-456-1 데이터 18","3-456-1",18,18,{"v":18,"d":"₩18.00"},{"v":18,"d":"₩18.00"},{"$f":"(송장세부정보[[#This Row],[수량]]*송장세부정보[[#This Row],[단가]])-송장세부정보[[#This Row],[할인]]","v":{"v":306,"d":"₩306.00"}}]
[null,"송장 3-456-1 데이터 19","3-456-1",19,19,{"v":19,"d":"₩19.00"},{"v":19,"d":"₩19.00"},{"$f":"(송장세부정보[[#This Row],[수량]]*송장세부정보[[#This Row],[단가]])-송장세부정보[[#This Row],[할인]]","v":{"v":342,"d":"₩342.00"}}]
[null,"송장 3-456-1 데이터 20","3-456-1",20,20,{"v":20,"d":"₩20.00"},{"v":20,"d":"₩20.00"},{"$f":"(송장세부정보[[#This Row],[수량]]*송장세부정보[[#This Row],[단가]])-송장세부정보[[#This Row],[할인]]","v":{"v":380,"d":"₩380.00"}}]
[null,"송장 3-456-1 데이터 21","3-456-1",21,21,{"v":21,"d":"₩21.00"},{"v":21,"d":"₩21.00"},{"$f":"(송장세부정보[[#This Row],[수량]]*송장세부정보[[#This Row],[단가]])-송장세부정보[[#This Row],[할인]]","v":{"v":420,"d":"₩420.00"}}]
[null,"송장 3-456-1 데이터 22","3-456-1",22,22,{"v":22,"d":"₩22.00"},{"v":22,"d":"₩22.00"},{"$f":"(송장세부정보[[#This Row],[수량]]*송장세부정보[[#This Row],[단가]])-송장세부정보[[#This Row],[할인]]","v":{"v":462,"d":"₩462.00"}}]
[null,"송장 3-456-1 데이터 23","3-456-1",23,23,{"v":23,"d":"₩23.00"},{"v":23,"d":"₩23.00"},{"$f":"(송장세부정보[[#This Row],[수량]]*송장세부정보[[#This Row],[단가]])-송장세부정보[[#This Row],[할인]]","v":{"v":506,"d":"₩506.00"}}]
[null,"송장 3-456-1 데이터 24","3-456-1",24,24,{"v":24,"d":"₩24.00"},{"v":24,"d":"₩24.00"},{"$f":"(송장세부정보[[#This Row],[수량]]*송장세부정보[[#This Row],[단가]])-송장세부정보[[#This Row],[할인]]","v":{"v":552,"d":"₩552.00"}}]
[null,"송장 3-456-1 데이터 25","3-456-1",25,25,{"v":25,"d":"₩25.00"},{"v":25,"d":"₩25.00"},{"$f":"(송장세부정보[[#This Row],[수량]]*송장세부정보[[#This Row],[단가]])-송장세부정보[[#This Row],[할인]]","v":{"v":600,"d":"₩600.00"}}]
[null,"송장 3-456-2 데이터 1","3-456-2","Z4567",39,{"v":5,"d":"₩5.00"},null,{"$f":"(송장세부정보[[#This Row],[수량]]*송장세부정보[[#This Row],[단가]])-송장세부정보[[#This Row],[할인]]","v":{"v":195,"d":"₩195.00"}}]
[null,"송장 3-456-2 데이터 2","3-456-2","Z4568",40,{"v":4,"d":"₩4.00"},{"v":5,"d":"₩5.00"},{"$f":"(송장세부정보[[#This Row],[수량]]*송장세부정보[[#This Row],[단가]])-송장세부정보[[#This Row],[할인]]","v":{"v":155,"d":"₩155.00"}}]
[null,"송장 3-456-2 데이터 3","3-456-2","Z4569",30,{"v":6,"d":"₩6.00"},{"v":7,"d":"₩7.00"},{"$f":"(송장세부정보[[#This Row],[수량]]*송장세부정보[[#This Row],[단가]])-송장세부정보[[#This Row],[할인]]","v":{"v":173,"d":"₩173.00"}}]
[null,"송장 3-456-2 데이터 4","3-456-2","Z4570",40,{"v":7,"d":"₩7.00"},null,{"$f":"(송장세부정보[[#This Row],[수량]]*송장세부정보[[#This Row],[단가]])-송장세부정보[[#This Row],[할인]]","v":{"v":280,"d":"₩280.00"}}]
[null,"송장 3-456-2 데이터 5","3-456-2","Z4571",10,{"v":4,"d":"₩4.00"},null,{"$f":"(송장세부정보[[#This Row],[수량]]*송장세부정보[[#This Row],[단가]])-송장세부정보[[#This Row],[할인]]","v":{"v":40,"d":"₩40.00"}}]
[null,"송장 3-456-2 데이터 6","3-456-2","Z4572",5,{"v":8,"d":"₩8.00"},null,{"$f":"(송장세부정보[[#This Row],[수량]]*송장세부정보[[#This Row],[단가]])-송장세부정보[[#This Row],[할인]]","v":{"v":40,"d":"₩40.00"}}]
[null,"송장 3-456-2 데이터 7","3-456-2","Z4573",70,{"v":6,"d":"₩6.00"},null,{"$f":"(송장세부정보[[#This Row],[수량]]*송장세부정보[[#This Row],[단가]])-송장세부정보[[#This Row],[할인]]","v":{"v":420,"d":"₩420.00"}}]
[null,"송장 3-456-2 데이터 8","3-456-2","Z4574",25,{"v":4,"d":"₩4.00"},null,{"$f":"(송장세부정보[[#This Row],[수량]]*송장세부정보[[#This Row],[단가]])-송장세부정보[[#This Row],[할인]]","v":{"v":100,"d":"₩100.00"}}]
[null,"송장 3-456-2 데이터 9","3-456-2","Z4575",5,{"v":7,"d":"₩7.00"},{"v":3,"d":"₩3.00"},{"$f":"(송장세부정보[[#This Row],[수량]]*송장세부정보[[#This Row],[단가]])-송장세부정보[[#This Row],[할인]]","v":{"v":32,"d":"₩32.00"}}]
[null,"송장 3-456-2 데이터 10","3-456-2","Z4576",80,{"v":1,"d":"₩1.00"},null,{"$f":"(송장세부정보[[#This Row],[수량]]*송장세부정보[[#This Row],[단가]])-송장세부정보[[#This Row],[할인]]","v":{"v":80,"d":"₩80.00"}}]
[null,"송장 3-456-2 데이터 11","3-456-2","Z4577",65,{"v":7,"d":"₩7.00"},null,{"$f":"(송장세부정보[[#This Row],[수량]]*송장세부정보[[#This Row],[단가]])-송장세부정보[[#This Row],[할인]]","v":{"v":455,"d":"₩455.00"}}]
[null,"송장 3-456-2 데이터 12","3-456-2","Z4578",44,{"v":1,"d":"₩1.00"},null,{"$f":"(송장세부정보[[#This Row],[수량]]*송장세부정보[[#This Row],[단가]])-송장세부정보[[#This Row],[할인]]","v":{"v":44,"d":"₩44.00"}}]

{"sheet":"송장 기록표 정보","index":4,"n_rows":40,"n_cols":3,"rows_kept":40,"merged":[[3,1,3,7],[4,1,4,7],[5,1,5,7],[6,1,6,7],[7,2,7,7],[8,2,8,7],[9,2,9,7],[10,2,10,7],[11,2,11,7],[12,1,12,7],[13,2,13,3],[14,2,14,7],[15,1,15,7],[16,2,16,7],[17,2,17,7],[18,2,18,7],[19,2,19,7],[20,2,20,7],[21,2,21,7],[22,1,22,7],[23,1,23,7],[24,2,24,7],[25,2,25,7],[26,2,26,7],[27,2,27,7],[28,1,28,7],[29,1,29,7],[30,2,30,7],[31,2,31,7],[32,2,32,7],[33,2,33,7],[34,2,34,7],[36,2,36,7],[37,2,37,7],[38,2,38,7],[39,2,39,7]]}
[null,"송장 기록표 정보"]
[]
[]
[null,"송장 기록표는 여러 개의 파일을 만들지 않고 여러 개의 송장을 저장할 수 있도록 고객, 송장 및 송장 세부 정보에 대한 기록을 관리하기 위해 설계되었습니다. 송장 기록표를 사용하여 이전 송장 데이터를 분석할 수도 있습니다. 예를 들어, 고객, 특정 프로젝트에 대한 모든 송장을 보거나 지난 달, 작년 등에 대한 모든 송장을 볼 수 있습니다."]
[null,"시작하기 전에 제공된 샘플 데이터를 확인하세요. 송장 시트에서 송장 번호(셀 L8)의 오른쪽에 있는 셀을 선택하면 드롭다운 목록이 나타납니다. 드롭다운 화살표를 선택하고 표본 송장을 선택합니다. 모든 송장 정보에서 선택한 송장을 반영하여 자동으로 변경되는 것을 볼 수 있습니다. 이제 고객, 송장-주 및 송장 세부 정보 시트를 확인하세요. 각 시트는 송장에 대한 정보를 제공하고 사용자가 변경한 내용이 자동으로 업데이트됩니다. "]
[null,"시작하려면 어떻게 하나요?"]
[null,"다음 단계를 사용하여 회사 정보를 반영하도록 송장 시트를 수정합니다."]
[null,"1.","송장 시트로 이동하고 검토 탭의 보호 그룹에서 시트 보호 해제를 선택합니다. "]
[null,null,"참고: 송장 시트는 예기치 않게 변경되는 것을 방지하는 데 도움이 되도록 보호할 수 있습니다. 이전에 설명한 것 처럼 이 시트의 대부분의 데이터는 통합 문서의 다른 모든 시트에서 가져옵니다. "]
[null,"2.","회사 이름, 주소, 구/군/시, 우편 주소, 웹 사이트 등을 입력하여 송장 머리글을 사용자 지정합니다. 송장 맨 아래(행 43)에서 지불 지침을 수정합니다. "]
[null,null,"중요! 대금 청구나 송장 정보를 수정하지 마세요. 이러한 모든 셀에는 송장 기록표 정보 섹션에 나와 있는 것처럼 송장을 자동으로 업데이트하는 수식이 있습니다."]
[null,"3.","(선택 사항)통합 문서 전체의 색상 수정: 페이지 레이아웃 탭의 테마 그룹에서색을 선택하고 색상 갤러리에서 다른 테마 색상 세트를 선택합니다. "]
[null,"팁: 회사 브랜드에 맞게 사용자 지정 테마 색 세트 만들기! 이렇게 하려면 페이지 레이아웃 탭의 테마 그룹에서 색을 선택하고 색 사용자 지정을 선택합니다. 사용자 지정 색 세트 만들기에 대한 자세한 내용은 다음 도움말 항목을 참조하세요. "]
[null,null,"문서 테마를 사용자 지정합니다."]
[null,"4.","원하는 내용을 변경한 후 송장 시트로 돌아가 검토 탭의 변경 내용 그룹에서 시트 보호를 선택한 다음 확인을 선택합니다. 송장 시트가 보호되어 있는 경우 선택할 수 있는 유일한 셀은 송장 번호 드롭다운이 있는 셀입니다."]
[null,"송장을 만들려면 어떻게 하나요?"]
[null,"1.","고객 시트에 회사 이름 및 주소와 같은 고객 정보를 입력합니다. 회사 번호는 송장 기록표에서 사용하는 각 회사의 고유 식별자를 제공하므로 중요한 항목입니다. 또한 한 번만 회사를 추가하면 됩니다. 동일한 회사에 대한 후속 송장의 경우 이 단계를 건너뛸 수 있습니다. "]
[null,null,"참고: 두 개 이상의 회사에 동일한 번호를 지정하거나 동일한 회사 이름을 두 번 이상 입력하면 항목이 빨간색으로 바뀌어 중복 항목에 대한 경고가 표시됩니다. "]
[null,"2.","송장-주 시트에서 송장에 대한 기본 정보(예: 송장 번호, 송장 날짜, 프로젝트 설명)를 입력합니다. 회사 번호와 같이 청구서 번호는 송장 기록표에서 사용하는 각 송장의 고유 식별자를 제공하므로 중요한 항목입니다. 또 다른 중요한 항목은 회사입니다. 드롭 다운에서 회사를 선택하면 송장이 해당 회사와 연결됩니다. 그런 다음 송장 시트에서 송장 번호를 선택하면 회사 이름 및 주소와 같은 회사 정보가 송장에 자동으로 입력됩니다."]
[null,null,"참고: 두 개 이상의 송장에 동일한 번호를 지정하면 항목이 빨간색으로 바뀌어 중복 항목에 대한 경고가 표시됩니다. "]
[null,"3.","송장 세부 정보 시트에서 송장에 대한 세부 정보(예: 항목 설명, 항목 번호, 수량, 단가)를 입력합니다. 송장 번호 드롭다운에서 사용자가 데이터를 입력하는 데 도움이 되는 주 시트에 입력한 송장의 목록을 제공합니다. 이전 단계에서 회사 번호와 비슷하게 송장 번호는 해당 세부 정보 항목에 특정 송장을 연관시킵니다. 송장 번호 드롭다운에서 송장 시트의 송장 번호를 선택하면 해당 송장의 관련 송장 세부 정보 항목이 표시됩니다."]
[null,null,"참고: 송장 당 25개의 세부 항목 항목으로 제한됩니다. 25개 이상의 항목을 추가하면 해당하는 모든 항목이 빨간색으로 표시되어 이 제한 사항에 대한 알림을 받습니다. 송장 항목이 25개를 초과하는 경우 두 번째 송장을 만들어야 할 수 있습니다. "]
[null,"고객, 송장 및 송장 세부 정보를 더 추가하려면 어떻게 하나요?"]
[null,"고객, 송장 및 송장 세부 정보에 대한 데이터가 Excel 표에 저장됩니다. 표에 새 행을 추가하면 새로 추가한 행의 서식이 자동 지정되고 모든 계산이 복사됩니다. 새 표 행을 추가하려면 다음 중 하나를 수행합니다."]
[null,"● ","표에 요약 행이 없는 경우 표 아래에 입력하고 Enter 키나 Tab 키를 누르면 자동으로 확장됩니다."]
[null,"● ","마지막 송장의 메모 셀에 있는 송장 표와 같이 총 행 위에 있는 마지막 셀에 셀 포인터를 놓고 Tab 키를 누릅니다."]
[null,"● ","홈 탭의 셀 그룹에서 삽입을 선택하고 위쪽 표 행 또는 아래쪽 표 행을 선택합니다. "]
[null,"● ","표 오른쪽 아래 모서리에서 표 크기 조정 핸들에 마우스를 놓고 끌어서 사용 가능한 표 행의 개수를 늘립니다."]
[null,"송장 세부 정보를 분석하려면 어떻게 하나요?"]
[null,"송장 기록표 정보 섹션에서 설명한 대로 여러 송장을 입력한 후에는 특정 고객, 프로젝트, 지정된 날짜 간격 등에 대한 모든 송장의 목록을 볼 수 있습니다. 이 유형의 분석은 데이터 목록의 범위를 신속하게 좁힐 수 있는 필터를 사용하여 수행됩니다. 고객, 송장 또는 송장 세부 정보 표에서 필터에 액세스하려면 테이블 필드 이름 옆에 있는 드롭다운 화살표를 선택합니다. 필터 창이 표시되면 다양한 필터링 옵션을 제공합니다. 시작하는 데 도움이 되는 몇 가지 필터링 예제는 다음과 같습니다."]
[null,"● ","특정 고객에게 송장을 발부한 총 금액을 보려면 다음을 실행합니다. 송장-주 시트에서 회사 번호 필드 오른쪽에 있는 드롭다운 화살표를 선택합니다. 필터 창에서 모두 선택을 클릭하여 모든 회사를 선택 취소하고 원하는 회사를 선택한 다음 확인을 선택합니다. "]
[null,null,"팁: 필터 창에서 검색 텍스트 상자에 고객 이름을 입력하여 사용 가능한 목록을 빠르게 검색할 수도 있습니다."]
[null,"● ","특정 고객 및 특정 프로젝트에 대한 모든 송장을 보려면 다음을 실행합니다. 이전 예제에 제공된 단계를 사용하여 원하는 고객에 대한 필터링으로 시작합니다. 그런 다음 프로젝트 번호의 오른쪽에 있는 드롭다운 화살표를 선택합니다. 필터 창에서 원하는 프로젝트나 프로젝트를 선택하고 확인을 선택합니다. "]
[null,"● ","지난 달의 모든 송장을 보려면 다음을 실행합니다. 송장-주 시트에서 송장 날짜 필드의 오른쪽에 있는 드롭다운 화살표를 선택 하고 날짜 필터를 가리킨 다음 지난 달을 선택합니다."]
[null,"● ","지역 번호가 같은 모든 고객을 보려면 다음을 실행합니다. 고객 시트에서 회사 전화 번호 필드의 오른쪽에 있는 드롭다운 화살표를 선택합니다. 필터 창에서 검색 텍스트 상자를 클릭하고 지역 번호를 입력한 다음 확인을 선택합니다. "]
[null,"필터 팁"]
[null,"● ","표에 고객 및 송장과 같은 요약 행이 있는 경우 계산된 합계에는 필터링된 목록만 반영됩니다."]
[null,"● ","단일 필드 또는 여러 필드에 여러 필터를 사용하여 결과를 세부적으로 조정할 수 있습니다."]
[null,"● ","단일 필터를 지우려면 이전에 필터링한 열에 대한 드롭다운 화살표를 선택하고 <필드 이름>에서 필터 해제를 선택 합니다."]
[null,"● ","여러 필터를 동시에 지우려면 표에 셀 포인터를 놓고 홈 탭의 편집 그룹에서 정렬 및 필터를 선택하고 지우기를 선택합니다."]